[Event "Championnat d'Europe de Blitz"]
[Date "2024.12.09"]
[White "Ragger, Markus"]
[Black "Lagarde, Maxime"]
[WhiteElo "2577"]
[BlackElo "2600"]
[Round "7.8"]
[Result "1/2-1/2"]
[TimeControl "180+2"]

1. Nf3 {[%emt 00:03:08] [%clk 00:03:03]} Nf6 {[%clk 00:03:03]} 2. c4 {[%emt
00:00:05] [%clk 00:03:02]} g6 {[%clk 00:03:04]} 3. Nc3 {[%emt 00:00:10] [%clk
00:02:53]} Bg7 {[%emt 00:00:01] [%clk 00:03:05]} 4. d4 {[%emt 00:00:01] [%clk
00:02:54]} O-O {[%emt 00:00:02] [%clk 00:03:05]} 5. e4 {[%clk 00:02:55]} d6
{[%emt 00:00:01] [%clk 00:03:06]} 6. Be2 {[%clk 00:02:56]} e5 {[%emt 00:00:02]
[%clk 00:03:06]} 7. O-O {[%emt 00:00:02] [%clk 00:02:56]} Nc6 {[%emt 00:00:06]
[%clk 00:03:02]} 8. dxe5 {[%emt 00:00:02] [%clk 00:02:56]} dxe5 {[%emt 00:00:11]
[%clk 00:02:53]} 9. Bg5 {[%emt 00:00:02] [%clk 00:02:56]} Bg4 {[%emt 00:00:14]
[%clk 00:02:41]} 10. Qxd8 {[%emt 00:00:07] [%clk 00:02:51]} Nxd8 {[%emt
00:00:02] [%clk 00:02:41]} 11. Bxf6 {[%emt 00:00:03] [%clk 00:02:50]} Bxf6
{[%emt 00:00:01] [%clk 00:02:42]} 12. Nd5 {[%emt 00:00:01] [%clk 00:02:51]} Kg7
{[%emt 00:00:01] [%clk 00:02:43]} 13. Nxc7 {[%emt 00:00:03] [%clk 00:02:49]} Rc8
{[%emt 00:00:02] [%clk 00:02:44]} 14. Nd5 {[%emt 00:00:01] [%clk 00:02:50]} Bxf3
{[%emt 00:00:02] [%clk 00:02:44]} 15. gxf3 {[%emt 00:00:06] [%clk 00:02:46]} Ne6
{[%emt 00:00:02] [%clk 00:02:44]} 16. Rfc1 {[%emt 00:00:05] [%clk 00:02:42]} Nd4
{[%emt 00:00:03] [%clk 00:02:44]} 17. Kf1 {[%emt 00:00:06] [%clk 00:02:38]} Bg5
{[%emt 00:00:01] [%clk 00:02:45]} 18. Rc3 {[%emt 00:00:33] [%clk 00:02:07]} f5
{[%emt 00:00:02] [%clk 00:02:45]} 19. exf5 {[%emt 00:00:22] [%clk 00:01:47]}
Rxf5 {[%emt 00:00:02] [%clk 00:02:46]} 20. f4 {[%emt 00:00:04] [%clk 00:01:45]}
Nxe2 {[%emt 00:00:25] [%clk 00:02:22]} 21. Kxe2 {[%emt 00:00:02] [%clk
00:01:45]} exf4 {[%emt 00:00:05] [%clk 00:02:18]} 22. Kf3 {[%emt 00:00:12] [%clk
00:01:36]} Bf6 {[%emt 00:00:07] [%clk 00:02:13]} 23. Nxf6 {[%emt 00:00:10] [%clk
00:01:28]} Kxf6 {[%emt 00:00:01] [%clk 00:02:14]} 24. Rd1 {[%clk 00:01:29]} Rc7
{[%emt 00:00:12] [%clk 00:02:04]} 25. Rd4 {[%emt 00:00:10] [%clk 00:01:21]} Kg5
{[%emt 00:00:18] [%clk 00:01:48]} 26. Rc1 {[%emt 00:00:12] [%clk 00:01:11]} Rcf7
{[%emt 00:00:17] [%clk 00:01:33]} 27. Rg1+ {[%emt 00:00:27] [%clk 00:00:46]} Kh5
{[%emt 00:00:01] [%clk 00:01:33]} 28. h3 {[%emt 00:00:33] [%clk 00:00:16]} g5
{[%emt 00:00:04] [%clk 00:01:31]} 29. Re1 {[%clk 00:00:17]} Kh4 {[%emt 00:00:05]
[%clk 00:01:28]} 30. Kg2 {[%clk 00:00:19]} h5 {[%emt 00:00:15] [%clk 00:01:16]}
31. b4 {[%emt 00:00:01] [%clk 00:00:19]} g4 {[%emt 00:00:15] [%clk 00:01:03]}
32. hxg4 {[%emt 00:00:01] [%clk 00:00:20]} f3+ {[%emt 00:00:22] [%clk 00:00:43]}
33. Kh2 {[%clk 00:00:21]} hxg4 {[%emt 00:00:01] [%clk 00:00:44]} 34. Ree4 {[%clk
00:00:23]} Rg7 {[%emt 00:00:08] [%clk 00:00:39]} 35. c5 {[%emt 00:00:01] [%clk
00:00:23]} Rh5 {[%emt 00:00:05] [%clk 00:00:36]} 36. Rc4 {[%emt 00:00:06] [%clk
00:00:20]} Kg5+ {[%emt 00:00:03] [%clk 00:00:34]} 37. Kg1 {[%clk 00:00:21]} Kh4
{[%emt 00:00:04] [%clk 00:00:32]} 38. Kh2 {[%emt 00:00:02] [%clk 00:00:21]} Rd5
{[%emt 00:00:13] [%clk 00:00:21]} 39. b5 {[%emt 00:00:07] [%clk 00:00:16]} Rd2
{[%emt 00:00:02] [%clk 00:00:21]} 40. c6 {[%emt 00:00:03] [%clk 00:00:15]} bxc6
{[%emt 00:00:02] [%clk 00:00:22]} 41. bxc6 {[%clk 00:00:17]} Rxf2+ {[%emt
00:00:02] [%clk 00:00:22]} 42. Kg1 {[%emt 00:00:01] [%clk 00:00:18]} Rg2+ {[%emt
00:00:02] [%clk 00:00:21]} 43. Kf1 {[%emt 00:00:01] [%clk 00:00:19]} Rc7 {[%emt
00:00:06] [%clk 00:00:17]} 44. Red4 {[%clk 00:00:20]} Kh3 {[%emt 00:00:12] [%clk
00:00:07]} 45. Rf4 {[%emt 00:00:03] [%clk 00:00:20]} Rxa2 {[%emt 00:00:03] [%clk
00:00:06]} 46. Rxg4 {[%emt 00:00:01] [%clk 00:00:20]} Ra1+ {[%emt 00:00:03]
[%clk 00:00:05]} 47. Kf2 {[%clk 00:00:22]} Ra2+ {[%clk 00:00:06]} 48. Kxf3
{[%emt 00:00:01] [%clk 00:00:23]} Ra3+ {[%clk 00:00:07]} 49. Kf2 {[%emt
00:00:01] [%clk 00:00:24]} Ra2+ {[%emt 00:00:02] [%clk 00:00:07]} 50. Ke3 {[%clk
00:00:25]} Ra3+ {[%emt 00:00:02] [%clk 00:00:07]} 51. Kd2 {[%clk 00:00:26]} Rxc6
{[%emt 00:00:04] [%clk 00:00:05]} 52. Rh4+ {[%emt 00:00:02] [%clk 00:00:26]} Kg3
{[%emt 00:00:02] [%clk 00:00:04]} 1/2-1/2

[Site "Europe Echecs"]

[Event "Championnat d'Europe de Blitz"]
[Date "2024.12.09"]
[White "Nikolovski, Nikola"]
[Black "Muradli, Mahammad"]
[WhiteElo "2407"]
[BlackElo "2588"]
[Round "7.9"]
[Result "0-1"]
[TimeControl "180+2"]

1. f4 {[%emt 00:00:01] [%clk 00:03:03]} c5 {[%emt 00:00:06] [%clk 00:03:01]} 2.
Nf3 {[%clk 00:03:03]} Nc6 {[%emt 00:00:05] [%clk 00:02:57]} 3. e4 {[%emt
00:00:01] [%clk 00:03:04]} d5 {[%emt 00:00:05] [%clk 00:02:54]} 4. exd5 {[%emt
00:00:01] [%clk 00:03:05]} Qxd5 {[%emt 00:00:02] [%clk 00:02:55]} 5. Nc3 {[%emt
00:00:01] [%clk 00:03:06]} Qd8 {[%emt 00:00:09] [%clk 00:02:47]} 6. Bb5 {[%emt
00:00:04] [%clk 00:03:04]} Bd7 {[%emt 00:00:05] [%clk 00:02:44]} 7. Qe2 {[%emt
00:00:04] [%clk 00:03:03]} Nf6 {[%emt 00:00:08] [%clk 00:02:37]} 8. O-O {[%emt
00:00:06] [%clk 00:02:58]} Nd4 {[%emt 00:00:22] [%clk 00:02:18]} 9. Nxd4 {[%emt
00:00:24] [%clk 00:02:37]} cxd4 {[%emt 00:00:01] [%clk 00:02:18]} 10. Ne4 {[%emt
00:00:07] [%clk 00:02:32]} Nxe4 {[%emt 00:00:16] [%clk 00:02:04]} 11. Bxd7+
{[%emt 00:00:01] [%clk 00:02:32]} Qxd7 {[%clk 00:02:06]} 12. Qxe4 {[%emt
00:00:02] [%clk 00:02:33]} f5 {[%emt 00:00:06] [%clk 00:02:02]} 13. Qf3 {[%emt
00:00:35] [%clk 00:01:59]} e6 {[%emt 00:00:03] [%clk 00:02:02]} 14. c4 {[%emt
00:00:03] [%clk 00:01:57]} d3 {[%emt 00:00:46] [%clk 00:01:19]} 15. Kh1 {[%emt
00:00:06] [%clk 00:01:52]} Be7 {[%emt 00:00:03] [%clk 00:01:18]} 16. b3 {[%emt
00:00:10] [%clk 00:01:45]} Bf6 {[%clk 00:01:18]} 17. Rb1 {[%emt 00:00:01] [%clk
00:01:46]} Kf7 {[%clk 00:01:20]} 18. Ba3 {[%emt 00:00:22] [%clk 00:01:26]} Rac8
{[%emt 00:00:05] [%clk 00:01:17]} 19. Bb2 {[%emt 00:00:27] [%clk 00:01:01]} Bxb2
{[%emt 00:00:08] [%clk 00:01:11]} 20. Rxb2 {[%clk 00:01:02]} b5 {[%emt 00:00:01]
[%clk 00:01:13]} 21. Rc1 {[%emt 00:00:21] [%clk 00:00:42]} Rc7 {[%emt 00:00:30]
[%clk 00:00:46]} 22. h3 {[%emt 00:00:16] [%clk 00:00:28]} Qd4 {[%emt 00:00:22]
[%clk 00:00:26]} 23. Rc3 {[%emt 00:00:03] [%clk 00:00:26]} Rd8 {[%emt 00:00:02]
[%clk 00:00:26]} 24. Rb1 {[%clk 00:00:27]} g6 {[%emt 00:00:14] [%clk 00:00:14]}
25. Re1 {[%emt 00:00:15] [%clk 00:00:14]} Rdd7 {[%emt 00:00:09] [%clk 00:00:07]}
26. Qg3 {[%emt 00:00:07] [%clk 00:00:09]} bxc4 {[%emt 00:00:03] [%clk 00:00:07]}
27. bxc4 {[%emt 00:00:01] [%clk 00:00:09]} Rxc4 {[%emt 00:00:02] [%clk
00:00:07]} 28. Rb3 {[%emt 00:00:08]} Rb4 {[%emt 00:00:03] [%clk 00:00:05]} 29.
Rc3 {[%emt 00:00:02] [%clk 00:00:04]} Rb8 {[%emt 00:00:02] [%clk 00:00:05]} 30.
Re3 {[%emt 00:00:03] [%clk 00:00:03]} Qa4 {[%emt 00:00:03] [%clk 00:00:04]} 31.
Rcxd3 {[%emt 00:00:03] [%clk 00:00:03]} Rbd8 {[%emt 00:00:01] [%clk 00:00:05]}
32. Rxd7+ {[%clk 00:00:03]} Rxd7 {[%clk 00:00:06]} 33. Rd3 {[%emt 00:00:02]
[%clk 00:00:04]} Rxd3 {[%emt 00:00:04] [%clk 00:00:04]} 34. Qxd3 {[%emt
00:00:01] [%clk 00:00:05]} Ke7 {[%emt 00:00:02] [%clk 00:00:04]} 35. Qb3 {[%emt
00:00:04] [%clk 00:00:03]} Qxb3 {[%clk 00:00:04]} 36. axb3 {[%emt 00:00:01]
[%clk 00:00:04]} Kd6 {[%emt 00:00:01] [%clk 00:00:06]} 37. Kg1 {[%clk 00:00:05]}
Kc5 {[%clk 00:00:07]} 38. Kf2 {[%emt 00:00:01] [%clk 00:00:06]} Kb4 {[%clk
00:00:09]} 39. Ke3 {[%emt 00:00:02] [%clk 00:00:07]} Kxb3 {[%clk 00:00:10]} 40.
Kd4 {[%clk 00:00:08]} a5 {[%emt 00:00:01] [%clk 00:00:12]} 41. Ke5 {[%emt
00:00:02] [%clk 00:00:08]} a4 {[%emt 00:00:01] [%clk 00:00:13]} 42. Kxe6 {[%emt
00:00:02] [%clk 00:00:07]} a3 {[%clk 00:00:14]} 0-1

[Site "Europe Echecs"]

[Event "Championnat d'Europe de Blitz"]
[Date "2024.12.09"]
[White "Dardha, Daniel"]
[Black "Paichadze, Luka"]
[WhiteElo "2639"]
[BlackElo "2532"]
[Round "7.10"]
[Result "1/2-1/2"]
[TimeControl "180+2"]

1. e4 {[%emt 00:00:05] [%clk 00:03:01]} c6 {[%clk 00:03:04]} 2. d4 {[%emt
00:00:02] [%clk 00:03:00]} d5 {[%emt 00:00:01] [%clk 00:03:05]} 3. e5 {[%emt
00:00:02] [%clk 00:03:00]} Bf5 {[%emt 00:00:01] [%clk 00:03:06]} 4. Ne2 {[%emt
00:00:02] [%clk 00:03:00]} e6 {[%emt 00:00:06] [%clk 00:03:02]} 5. Ng3 {[%emt
00:00:01] [%clk 00:03:00]} Ne7 {[%emt 00:00:11] [%clk 00:02:54]} 6. Nd2 {[%emt
00:00:15] [%clk 00:02:47]} h6 {[%emt 00:00:01] [%clk 00:02:55]} 7. Nxf5 {[%emt
00:00:05] [%clk 00:02:44]} Nxf5 {[%emt 00:00:01] [%clk 00:02:55]} 8. Nf3 {[%emt
00:00:02] [%clk 00:02:45]} c5 {[%emt 00:00:01] [%clk 00:02:56]} 9. dxc5 {[%emt
00:00:07] [%clk 00:02:40]} Bxc5 {[%emt 00:00:05] [%clk 00:02:53]} 10. Bd3 {[%emt
00:00:01] [%clk 00:02:41]} Nh4 {[%emt 00:00:16] [%clk 00:02:39]} 11. Nxh4 {[%emt
00:00:32] [%clk 00:02:11]} Qxh4 {[%emt 00:00:01] [%clk 00:02:39]} 12. g3 {[%emt
00:00:24] [%clk 00:01:50]} Qh3 {[%emt 00:00:31] [%clk 00:02:10]} 13. Qe2 {[%emt
00:00:22] [%clk 00:01:30]} Nc6 {[%emt 00:00:34] [%clk 00:01:38]} 14. c3 {[%emt
00:00:02] [%clk 00:01:30]} d4 {[%emt 00:00:11] [%clk 00:01:29]} 15. f4 {[%emt
00:00:23] [%clk 00:01:09]} dxc3 {[%emt 00:00:05] [%clk 00:01:26]} 16. bxc3
{[%emt 00:00:01] [%clk 00:01:10]} O-O {[%emt 00:00:18] [%clk 00:01:11]} 17. Be4
{[%emt 00:00:04] [%clk 00:01:07]} Rfd8 {[%emt 00:00:12] [%clk 00:01:01]} 18. Bg2
{[%emt 00:00:13] [%clk 00:00:56]} Qf5 {[%emt 00:00:02] [%clk 00:01:02]} 19. Be4
{[%emt 00:00:04] [%clk 00:00:54]} Qh3 {[%emt 00:00:04] [%clk 00:01:00]} 20. Rb1
{[%emt 00:00:09] [%clk 00:00:47]} Bb6 {[%emt 00:00:01] [%clk 00:01:01]} 21. Bg2
{[%emt 00:00:06] [%clk 00:00:42]} Qf5 {[%emt 00:00:01] [%clk 00:01:02]} 22. Be4
{[%emt 00:00:10] [%clk 00:00:34]} Qh3 {[%clk 00:01:04]} 23. Bg2 {[%emt 00:00:14]
[%clk 00:00:22]} Qf5 {[%clk 00:01:04]} 24. Be4 {[%emt 00:00:12] [%clk 00:00:12]}
Qh3 {[%emt 00:00:09] [%clk 00:00:57]} 25. Bg2 {[%emt 00:00:02] [%clk 00:00:12]}
Qf5 {[%emt 00:00:02] [%clk 00:00:00]} 1/2-1/2

[Site "Europe Echecs"]

[Event "Championnat d'Europe de Blitz"]
[Date "2024.12.09"]
[White "Kazakouski, Valery"]
[Black "Trushko, Andrii"]
[WhiteElo "2567"]
[BlackElo "2143"]
[Round "7.11"]
[Result "0-1"]
[TimeControl "180+2"]

1. Nf3 {[%clk 00:03:03]} Nf6 {[%emt 00:00:01] [%clk 00:03:03]} 2. c4 {[%clk
00:03:04]} e6 {[%emt 00:00:04] [%clk 00:03:03]} 3. g3 {[%clk 00:03:05]} d5
{[%emt 00:00:01] [%clk 00:03:04]} 4. b3 {[%clk 00:03:06]} Be7 {[%emt 00:00:07]
[%clk 00:02:58]} 5. Bg2 {[%emt 00:00:01] [%clk 00:03:07]} O-O {[%emt 00:00:02]
[%clk 00:02:58]} 6. Bb2 {[%clk 00:03:08]} Nbd7 {[%emt 00:00:07] [%clk 00:02:54]}
7. O-O {[%emt 00:00:02] [%clk 00:03:07]} c6 {[%emt 00:00:04] [%clk 00:02:52]} 8.
d3 {[%emt 00:00:03] [%clk 00:03:06]} b6 {[%emt 00:00:01] [%clk 00:02:53]} 9. e4
{[%emt 00:00:01] [%clk 00:03:07]} dxe4 {[%emt 00:00:25] [%clk 00:02:30]} 10.
dxe4 {[%emt 00:00:01] [%clk 00:03:08]} Bb7 {[%emt 00:00:01] [%clk 00:02:31]} 11.
e5 {[%emt 00:00:01] [%clk 00:03:09]} Ne8 {[%emt 00:00:01] [%clk 00:02:32]} 12.
Nc3 {[%emt 00:00:07] [%clk 00:03:05]} Nc5 {[%emt 00:00:04] [%clk 00:02:30]} 13.
Nd4 {[%emt 00:00:04] [%clk 00:03:03]} Qc7 {[%emt 00:00:06] [%clk 00:02:26]} 14.
Qe2 {[%emt 00:00:02] [%clk 00:03:02]} g6 {[%emt 00:00:04] [%clk 00:02:24]} 15.
Rad1 {[%emt 00:00:08] [%clk 00:02:56]} Ng7 {[%emt 00:00:03] [%clk 00:02:24]} 16.
g4 {[%emt 00:00:07] [%clk 00:02:50]} Rfd8 {[%emt 00:00:16] [%clk 00:02:10]} 17.
b4 {[%emt 00:00:13] [%clk 00:02:40]} Nd7 {[%emt 00:00:13] [%clk 00:01:59]} 18.
b5 {[%emt 00:00:36] [%clk 00:02:06]} Nxe5 {[%emt 00:00:24] [%clk 00:01:37]} 19.
bxc6 {[%emt 00:00:33] [%clk 00:01:34]} Nxc6 {[%emt 00:00:02] [%clk 00:01:38]}
20. Ndb5 {[%emt 00:00:03] [%clk 00:01:33]} Qb8 {[%emt 00:00:13] [%clk 00:01:27]}
21. Ne4 {[%emt 00:00:16] [%clk 00:01:18]} Qf4 {[%emt 00:00:09] [%clk 00:01:20]}
22. Bc1 {[%emt 00:00:19] [%clk 00:01:01]} Qb8 {[%emt 00:00:17] [%clk 00:01:05]}
23. Bb2 {[%emt 00:00:36] [%clk 00:00:27]} Qf4 {[%emt 00:00:15] [%clk 00:00:52]}
24. Bc1 {[%emt 00:00:04] [%clk 00:00:25]} Qb8 {[%emt 00:00:01] [%clk 00:00:53]}
25. Bh6 {[%emt 00:00:01] [%clk 00:00:26]} e5 {[%emt 00:00:23] [%clk 00:00:32]}
26. Rxd8+ {[%emt 00:00:05] [%clk 00:00:24]} Nxd8 {[%emt 00:00:03] [%clk
00:00:31]} 27. f4 {[%emt 00:00:06] [%clk 00:00:20]} a6 {[%emt 00:00:06] [%clk
00:00:27]} 28. Nbc3 {[%clk 00:00:21]} Bxe4 {[%emt 00:00:07] [%clk 00:00:21]} 29.
Qxe4 {[%emt 00:00:03] [%clk 00:00:20]} Ra7 {[%emt 00:00:01] [%clk 00:00:23]} 30.
fxe5 {[%emt 00:00:02] [%clk 00:00:20]} Bc5+ {[%clk 00:00:24]} 31. Kh1 {[%clk
00:00:21]} Nde6 {[%emt 00:00:01] [%clk 00:00:25]} 32. Nd5 {[%emt 00:00:01] [%clk
00:00:22]} b5 {[%emt 00:00:04] [%clk 00:00:23]} 33. cxb5 {[%emt 00:00:01] [%clk
00:00:23]} axb5 {[%emt 00:00:02] [%clk 00:00:23]} 34. Nf6+ {[%emt 00:00:12]
[%clk 00:00:13]} Kh8 {[%clk 00:00:24]} 35. Qd5 {[%emt 00:00:05] [%clk 00:00:10]}
Bd4 {[%emt 00:00:04] [%clk 00:00:22]} 36. Nd7 {[%emt 00:00:03] [%clk 00:00:08]}
Qe8 {[%emt 00:00:08] [%clk 00:00:16]} 37. Nf6 {[%emt 00:00:03] [%clk 00:00:07]}
Qd8 {[%emt 00:00:03] [%clk 00:00:15]} 38. Qxb5 {[%emt 00:00:02] [%clk 00:00:08]}
Ra5 {[%emt 00:00:03] [%clk 00:00:14]} 39. Qb3 {[%emt 00:00:01] [%clk 00:00:08]}
Bxe5 {[%emt 00:00:02] [%clk 00:00:15]} 40. Nd5 {[%emt 00:00:01] [%clk 00:00:09]}
Ra7 {[%emt 00:00:03] [%clk 00:00:14]} 41. Rd1 {[%emt 00:00:01] [%clk 00:00:09]}
Qb8 {[%emt 00:00:02] [%clk 00:00:15]} 42. Qxb8+ {[%emt 00:00:01] [%clk
00:00:09]} Bxb8 {[%emt 00:00:01] [%clk 00:00:16]} 43. Nf6 {[%emt 00:00:02] [%clk
00:00:10]} Be5 {[%emt 00:00:02] [%clk 00:00:16]} 44. Nd7 {[%emt 00:00:02] [%clk
00:00:11]} Bf4 {[%emt 00:00:03] [%clk 00:00:14]} 45. Bxf4 {[%emt 00:00:02] [%clk
00:00:10]} Nxf4 {[%clk 00:00:15]} 46. Ne5 {[%emt 00:00:02] [%clk 00:00:10]} Nge6
{[%emt 00:00:02] [%clk 00:00:16]} 47. Rd2 {[%emt 00:00:04] [%clk 00:00:08]} Kg7
{[%emt 00:00:01] [%clk 00:00:17]} 48. Kg1 {[%emt 00:00:03] [%clk 00:00:07]} Kf6
{[%emt 00:00:02] [%clk 00:00:17]} 49. Nf3 {[%emt 00:00:03] [%clk 00:00:06]} Ra4
{[%emt 00:00:04] [%clk 00:00:15]} 50. Bf1 {[%clk 00:00:07]} h6 {[%emt 00:00:02]
[%clk 00:00:14]} 51. Kf2 {[%emt 00:00:01] [%clk 00:00:08]} g5 {[%emt 00:00:04]
[%clk 00:00:13]} 52. Ke3 {[%emt 00:00:02] [%clk 00:00:07]} Ng6 {[%emt 00:00:01]
[%clk 00:00:14]} 53. h3 {[%emt 00:00:03] [%clk 00:00:07]} Ngf4 {[%emt 00:00:01]
[%clk 00:00:15]} 54. Kf2 {[%emt 00:00:03] [%clk 00:00:06]} Ng6 {[%emt 00:00:01]
[%clk 00:00:16]} 55. Kg3 {[%emt 00:00:01] [%clk 00:00:07]} Nef4 {[%clk
00:00:17]} 56. Rb2 {[%emt 00:00:02] [%clk 00:00:08]} Ra3 {[%clk 00:00:18]} 57.
Kf2 {[%emt 00:00:01] [%clk 00:00:09]} Kg7 {[%emt 00:00:10] [%clk 00:00:10]} 58.
Rd2 {[%emt 00:00:01] [%clk 00:00:09]} Ne6 {[%emt 00:00:02] [%clk 00:00:10]} 59.
Bc4 {[%emt 00:00:01] [%clk 00:00:10]} Ngf4 {[%emt 00:00:02] [%clk 00:00:10]} 60.
Bf1 {[%emt 00:00:02] [%clk 00:00:10]} Nc5 {[%clk 00:00:12]} 61. Rc2 {[%emt
00:00:06] [%clk 00:00:06]} Ne4+ {[%emt 00:00:01] [%clk 00:00:13]} 0-1

[Site "Europe Echecs"]

[Event "Championnat d'Europe de Blitz"]
[Date "2024.12.09"]
[White "Quparadze, Giga"]
[Black "Ghimpu, Samuel-Timotei"]
[WhiteElo "2537"]
[BlackElo "2475"]
[Round "7.12"]
[Result "1-0"]
[TimeControl "180+2"]

1. e4 {[%clk 00:03:03]} e6 {[%emt 00:00:01] [%clk 00:03:03]} 2. d4 {[%emt
00:00:01] [%clk 00:03:04]} d5 {[%emt 00:00:03] [%clk 00:03:05]} 3. Nd2 {[%clk
00:03:05]} c5 {[%clk 00:03:06]} 4. Ngf3 {[%emt 00:00:01] [%clk 00:03:06]} cxd4
{[%emt 00:00:02] [%clk 00:03:05]} 5. Nxd4 {[%emt 00:00:01] [%clk 00:03:06]} Nc6
{[%clk 00:03:07]} 6. Bb5 {[%emt 00:00:04] [%clk 00:03:06]} Bd7 {[%clk 00:03:08]}
7. Nxc6 {[%emt 00:00:02] [%clk 00:03:06]} bxc6 {[%clk 00:03:09]} 8. Bd3 {[%emt
00:00:01] [%clk 00:03:06]} Bd6 {[%clk 00:03:11]} 9. O-O {[%emt 00:00:05] [%clk
00:03:03]} Qc7 {[%emt 00:00:09] [%clk 00:03:04]} 10. Nf3 {[%emt 00:00:02] [%clk
00:03:03]} Nf6 {[%emt 00:00:20] [%clk 00:02:46]} 11. Qe2 {[%emt 00:00:06] [%clk
00:02:59]} dxe4 {[%emt 00:00:26] [%clk 00:02:22]} 12. Bxe4 {[%emt 00:00:01]
[%clk 00:02:59]} Nxe4 {[%clk 00:02:23]} 13. Qxe4 {[%emt 00:00:03] [%clk
00:02:59]} O-O {[%emt 00:00:12] [%clk 00:02:13]} 14. Rd1 {[%emt 00:00:08] [%clk
00:02:53]} Rad8 {[%emt 00:00:30] [%clk 00:01:46]} 15. h3 {[%emt 00:00:36] [%clk
00:02:19]} h6 {[%emt 00:00:05] [%clk 00:01:43]} 16. b3 {[%emt 00:00:04] [%clk
00:02:17]} e5 {[%emt 00:00:15] [%clk 00:01:30]} 17. Bb2 {[%emt 00:00:13] [%clk
00:02:06]} Rfe8 {[%emt 00:00:01] [%clk 00:01:31]} 18. Nh4 {[%emt 00:00:06] [%clk
00:02:01]} Bf8 {[%emt 00:00:33] [%clk 00:01:01]} 19. Rd3 {[%emt 00:00:03] [%clk
00:01:59]} Bc8 {[%emt 00:00:18] [%clk 00:00:46]} 20. Rad1 {[%emt 00:00:03] [%clk
00:01:57]} Rxd3 {[%emt 00:00:04] [%clk 00:00:46]} 21. Rxd3 {[%emt 00:00:02]
[%clk 00:01:56]} f6 {[%emt 00:00:33] [%clk 00:00:15]} 22. Nf5 {[%emt 00:00:20]
[%clk 00:01:37]} Rd8 {[%emt 00:00:07] [%clk 00:00:11]} 23. Qc4+ {[%emt 00:00:12]
[%clk 00:01:27]} Kh8 {[%emt 00:00:04] [%clk 00:00:09]} 24. Nh4 {[%emt 00:00:02]
[%clk 00:01:27]} Rxd3 {[%emt 00:00:03] [%clk 00:00:08]} 25. Ng6+ {[%clk
00:01:28]} Kh7 {[%emt 00:00:03] [%clk 00:00:07]} 26. Nxf8+ {[%emt 00:00:02]
[%clk 00:01:28]} Kh8 {[%clk 00:00:09]} 27. Qxd3 {[%emt 00:00:03] [%clk
00:01:28]} f5 {[%emt 00:00:05] [%clk 00:00:06]} 28. Ng6+ {[%emt 00:00:02] [%clk
00:01:27]} Kh7 {[%emt 00:00:01] [%clk 00:00:07]} 29. Nxe5 {[%emt 00:00:01] [%clk
00:01:28]} 1-0

[Site "Europe Echecs"]

[Event "Championnat d'Europe de Blitz"]
[Date "2024.12.09"]
[White "Santos Latasa, Jaime"]
[Black "Schneider, Ilja"]
[WhiteElo "2628"]
[BlackElo "2414"]
[Round "7.13"]
[Result "1-0"]
[TimeControl "180+2"]

1. c4 {[%clk 00:03:03]} Nf6 {[%emt 00:00:02] [%clk 00:03:03]} 2. Nf3 {[%emt
00:00:01] [%clk 00:03:03]} e6 {[%emt 00:00:03] [%clk 00:03:04]} 3. g3 {[%clk
00:03:01]} d5 {[%emt 00:00:03] [%clk 00:03:04]} 4. Bg2 {[%emt 00:00:01] [%clk
00:03:02]} d4 {[%emt 00:00:03] [%clk 00:03:03]} 5. d3 {[%emt 00:00:02] [%clk
00:03:02]} Nc6 {[%emt 00:00:01] [%clk 00:03:03]} 6. O-O {[%emt 00:00:04] [%clk
00:03:00]} Bc5 {[%emt 00:00:01] [%clk 00:03:03]} 7. Nbd2 {[%emt 00:00:06] [%clk
00:02:57]} a5 {[%emt 00:00:01] [%clk 00:03:05]} 8. Nb3 {[%emt 00:00:08] [%clk
00:02:51]} Be7 {[%emt 00:00:02] [%clk 00:03:05]} 9. e3 {[%emt 00:00:02] [%clk
00:02:51]} dxe3 {[%emt 00:00:02] [%clk 00:03:05]} 10. Bxe3 {[%clk 00:02:51]} O-O
{[%emt 00:01:23] [%clk 00:01:44]} 11. a4 {[%emt 00:00:22] [%clk 00:02:32]} Ng4
{[%emt 00:00:16] [%clk 00:01:30]} 12. Bc1 {[%emt 00:00:23] [%clk 00:02:11]} e5
{[%emt 00:00:25] [%clk 00:01:07]} 13. h3 {[%emt 00:00:05] [%clk 00:02:08]} Nf6
{[%emt 00:00:01] [%clk 00:01:08]} 14. Re1 {[%emt 00:00:08] [%clk 00:02:01]} Bb4
{[%emt 00:00:09] [%clk 00:01:02]} 15. Bd2 {[%emt 00:00:17] [%clk 00:01:46]} Qxd3
{[%emt 00:00:12] [%clk 00:00:51]} 16. Bxb4 {[%emt 00:00:10] [%clk 00:01:39]}
Qxd1 {[%emt 00:00:05] [%clk 00:00:48]} 17. Raxd1 {[%emt 00:00:13] [%clk
00:01:28]} axb4 {[%emt 00:00:01] [%clk 00:00:48]} 18. Nxe5 {[%emt 00:00:03]
[%clk 00:01:27]} Nxe5 {[%emt 00:00:05] [%clk 00:00:46]} 19. Rxe5 {[%emt
00:00:02] [%clk 00:01:27]} Rxa4 {[%emt 00:00:02] [%clk 00:00:46]} 20. g4 {[%emt
00:00:08] [%clk 00:01:20]} Ra2 {[%emt 00:00:02] [%clk 00:00:46]} 21. Rd2 {[%emt
00:00:04] [%clk 00:01:18]} Be6 {[%emt 00:00:07] [%clk 00:00:41]} 22. Nc5 {[%emt
00:00:09] [%clk 00:01:11]} Bxc4 {[%emt 00:00:04] [%clk 00:00:40]} 23. Bxb7
{[%emt 00:00:09] [%clk 00:01:04]} h6 {[%emt 00:00:09] [%clk 00:00:32]} 24. Re7
{[%emt 00:00:03] [%clk 00:01:03]} Kh7 {[%emt 00:00:23] [%clk 00:00:12]} 25. Rxc7
{[%emt 00:00:06] [%clk 00:00:58]} Re8 {[%clk 00:00:14]} 26. Bf3 {[%emt 00:00:09]
[%clk 00:00:51]} Re1+ {[%emt 00:00:02] [%clk 00:00:13]} 27. Kh2 {[%emt 00:00:04]
[%clk 00:00:49]} Rb1 {[%emt 00:00:02] [%clk 00:00:14]} 28. Ne4 {[%emt 00:00:03]
[%clk 00:00:48]} Bb3 {[%emt 00:00:13] [%clk 00:00:03]} 29. Nxf6+ {[%emt
00:00:02] [%clk 00:03:02]} 1-0

[Site "Europe Echecs"]